fUSD/lending_fUSD_20251026
["ID","MTS","AMOUNT","RATE_DAILY","PERIOD"]
[392417206,1761455447444,-267.43,0.00030345,2]
[392417207,1761455447453,-688.5,0.00030418,2]
[392417208,1761455447462,-500.0,0.00030423,9]
[392417209,1761455447470,-500.0,0.00030423,7]
[392417210,1761455447479,-500.0,0.00030423,9]
[392417211,1761455447489,-2995.52,0.00030424,2]
[392417212,1761455447498,-8112.87356211,0.00030428,2]
[392417213,1761455447507,-274.11,0.0003044,2]
[392417214,1761455447516,-1375.11,0.00030445,14]
[392417215,1761455447526,-1000.0,0.00030541,2]
[392417216,1761455447535,-150.0,0.00030549,2]
[392417217,1761455447543,-1511.80013752,0.00030568,5]
[392417218,1761455447552,-1380.18242532,0.00030616,5]
[392417219,1761455447562,-688.5,0.00030625,2]
[392417220,1761455447571,-364.26,0.00030635,2]
[392417221,1761455447581,-278.86,0.000307,30]
[392417222,1761455447590,-269.0,0.00030718,2]
[392417223,1761455447600,-1375.11,0.00030719,14]
[392417224,1761455447609,-157.11259,0.0003077,2]
[392417225,1761455447618,-151.0,0.00030793,30]
[392417226,1761455447627,-151.0,0.00030793,30]
[392417227,1761455447636,-157.320763,0.00030793,30]
[392417228,1761455447646,-151.0,0.00030793,30]
[392417229,1761455447655,-430.60393496,0.000308,2]
[392417230,1761455447664,-500.0,0.000308,2]
[392417231,1761455447673,-500.0,0.000308,2]
[392417232,1761455447683,-500.0,0.000308,2]
[392417233,1761455447692,-250.0,0.000308,2]
[392417234,1761455447702,-250.0,0.000308,2]
[392417235,1761455447711,-277.35679052,0.000308,2]
[392417236,1761455447720,-171.217975,0.00030802,30]
[392417237,1761455447730,-171.217975,0.00030802,30]
[392417238,1761455447739,-171.217975,0.00030802,30]
[392417239,1761455447748,-171.217969,0.00030802,30]
[392417240,1761455447757,-151.0,0.00030802,30]
[392417241,1761455447766,-151.0,0.00030802,30]
[392417242,1761455447777,-267.927669,0.00030802,30]
[392417243,1761455447786,-267.0,0.00030802,7]
[392417244,1761455447795,-274.11,0.00030808,2]
[392417245,1761455447805,-6353.83,0.00030812,2]
[392417246,1761455447814,-688.5,0.00030832,2]
[392417247,1761455447823,-267.0,0.00030898,2]
[392417248,1761455447832,-166.47,0.00030911,2]
[392417249,1761455447842,-375.1461107,0.00030933,2]
[392417250,1761455447851,-500.0,0.00030962,9]
[392417251,1761455447861,-794.0,0.00030972,5]
[392417252,1761455447871,-594.95444689,0.00030992,9]
[392417253,1761455447881,-150.0,0.00030993,2]
[392417254,1761455447890,-150.0,0.00030993,2]
[392417255,1761455447899,-151.07445959,0.00030993,2]
[392417256,1761455447908,-500.0,0.00030993,2]
[392417257,1761455447917,-150.0,0.00030993,2]
[392417258,1761455447926,-500.0,0.00030993,2]
[392417259,1761455447936,-251.04427541,0.00030993,2]
[392417260,1761455447945,-500.0,0.00030993,2]
[392417261,1761455447954,-150.0,0.00030993,2]
[392417262,1761455447964,-500.0,0.00030993,2]
[392417263,1761455447973,-150.0,0.00030993,2]
[392417264,1761455447982,-150.0,0.00030993,2]
[392417265,1761455447991,-150.0,0.00030993,2]
[392417266,1761455448003,-262.26010147,0.00030993,2]
[392417267,1761455448012,-500.0,0.00030993,2]
[392417268,1761455448021,-150.0,0.00030993,2]
[392417269,1761455448030,-1375.11,0.00030993,14]
[392417270,1761455448040,-991.77,0.00031,7]
[392417271,1761455448049,-1000.0,0.00031006,2]
[392417272,1761455448058,-300.0,0.00031012,7]
[392417273,1761455448067,-267.0,0.00031021,2]
[392417274,1761455448076,-154.62,0.0003103,2]
[392417275,1761455448086,-688.5,0.00031039,2]
[392417276,1761455448095,-263.56433619,0.00031048,2]
[392417277,1761455448105,-150.0,0.00031048,2]
[392417278,1761455448114,-500.0,0.00031048,2]
[392417279,1761455448123,-224.89291115,0.00031048,2]
[392417280,1761455448132,-500.0,0.00031048,2]
[392417281,1761455448142,-500.0,0.00031048,2]
[392417282,1761455448151,-150.0,0.00031048,2]
[392417283,1761455448162,-500.0,0.00031048,2]
[392417284,1761455448171,-150.0,0.00031048,2]
[392417285,1761455448181,-150.0,0.00031048,2]
[392417286,1761455448190,-150.0,0.00031048,2]
[392417287,1761455448199,-602.77401703,0.00031048,2]
[392417288,1761455448209,-151.33382109,0.00031048,2]
[392417289,1761455448218,-150.0,0.00031103,2]
[392417290,1761455448228,-506.00199717,0.00031103,2]
[392417291,1761455448239,-508.2799414,0.00031103,2]
[392417292,1761455448248,-500.0,0.00031103,2]
[392417293,1761455448258,-150.0,0.00031103,2]
[392417294,1761455448267,-507.28474439,0.00031103,2]
[392417295,1761455448276,-150.0,0.00031103,2]
[392417296,1761455448286,-150.0,0.00031103,2]
[392417297,1761455448295,-153.74685205,0.00031103,2]
[392417298,1761455448305,-362.5,0.00031128,30]
[392417299,1761455448315,-169.77,0.00031143,2]
[392417300,1761455448325,-150.0,0.00031157,2]
[392417301,1761455448338,-150.0,0.00031157,2]
[392417302,1761455448347,-153.57149911,0.00031157,2]
[392417303,1761455448356,-150.0,0.00031157,2]
[392417304,1761455448365,-1777.9,0.00031161,2]
[392417305,1761455448374,-150.0,0.00031212,2]
[392417306,1761455448383,-210.3133997,0.00031212,2]
[392417307,1761455448392,-230.10394096,0.00031212,2]
[392417308,1761455448402,-152.0,0.00031229,3]
[392417309,1761455448411,-688.5,0.00031246,2]
[392417310,1761455448420,-205.91963917,0.00031267,2]
[392417311,1761455448429,-1375.11,0.00031267,14]
[392417312,1761455448438,-157.11259,0.0003127,2]
[392417313,1761455448447,-8112.87356211,0.00031291,2]
[392417314,1761455448457,-500.0,0.00031301,9]
[392417315,1761455448467,-500.0,0.00031301,7]
[392417316,1761455448476,-232.32231663,0.00031301,9]
[392417317,1761455448485,-666.0,0.00031378,2]
[392417318,1761455448495,-564.29521402,0.0003139,2]
[392417319,1761455448505,-200.0,0.000314,2]
[392417320,1761455448515,-200.0,0.000314,2]
[392417321,1761455448525,-267.43,0.00031404,2]
[392417322,1761455448534,-999.0,0.00031418,3]
[392417323,1761455448544,-1000.0,0.00031425,2]
[392417324,1761455448554,-267.0,0.00031441,7]
[392417325,1761455448563,-587.0,0.00031446,3]
[392417326,1761455448573,-587.0,0.00031446,2]
[392417327,1761455448583,-688.5,0.00031453,2]
[392417328,1761455448592,-267.0,0.00031516,7]
[392417329,1761455448602,-1375.11,0.00031541,14]
[392417330,1761455448612,-267.0,0.00031584,2]
[392417331,1761455448621,-180.0,0.00031644,14]
[392417332,1761455448630,-688.5,0.0003166,2]
[392417333,1761455448640,-166.66,0.00031676,2]
[392417334,1761455448649,-267.0,0.00031683,7]
[392417335,1761455448659,-267.0,0.00031686,2]
[392417336,1761455448668,-163.73972323,0.00031699,30]
[392417337,1761455448678,-1000.0,0.00031699,2]
[392417338,1761455448687,-200.0,0.00031714,2]
[392417339,1761455448696,-2351.0,0.00031725,3]
[392417340,1761455448705,-267.0,0.00031731,7]
[392417341,1761455448715,-267.0,0.00031754,2]
[392417342,1761455448724,-1392.96,0.00031781,2]
[392417343,1761455448733,-1375.11,0.00031815,14]
[392417344,1761455448742,-688.5,0.00031867,2]
[392417345,1761455448751,-267.0,0.00031874,2]
[392417346,1761455448760,-267.0,0.00031903,2]
[392417347,1761455448770,-1000.0,0.00031973,2]
[392417348,1761455448779,-500.0,0.00031978,9]
[392417349,1761455448788,-278.86,0.00032,30]
[392417350,1761455448797,-305.9736867,0.00032,120]
[392417351,1761455448806,-163.73972323,0.00032027,30]
[392417352,1761455448816,-375.1461107,0.0003204,2]
[392417353,1761455448826,-688.5,0.00032075,2]
[392417354,1761455448835,-1375.11,0.00032089,14]
[392417355,1761455448845,-991.77,0.000321,7]
[392417356,1761455448855,-300.0,0.00032137,2]
[392417357,1761455448864,-267.0,0.00032148,2]
[392417358,1761455448873,-8112.87356211,0.00032154,2]
[392417359,1761455448882,-382.51508768,0.00032169,2]
[392417360,1761455448892,-152.0,0.00032185,4]
[392417361,1761455448901,-267.0,0.00032196,2]
[392417362,1761455448910,-1000.0,0.00032247,2]
[392417363,1761455448919,-688.5,0.00032282,2]
[392417364,1761455448928,-267.0,0.00032317,2]
[392417365,1761455448938,-1375.11,0.00032363,14]
[392417366,1761455448947,-272.0,0.00032371,2]
[392417367,1761455448956,-163.73972323,0.00032384,30]
[392417368,1761455448965,-1596.047,0.00032427,2]
[392417369,1761455448974,-1312.0,0.00032427,2]
[392417370,1761455448983,-608.339,0.00032427,2]
[392417371,1761455448992,-818.0,0.00032427,2]
[392417372,1761455449001,-1270.0,0.00032427,2]
[392417373,1761455449010,-3489.0,0.00032427,2]
[392417374,1761455449019,-6585.0,0.00032427,2]
[392417375,1761455449028,-1138.932,0.00032427,2]
[392417376,1761455449037,-558.0,0.00032427,2]
[392417377,1761455449046,-387.7869679,0.00032428,7]
[392417378,1761455449055,-500.0,0.00032428,7]
[392417379,1761455449064,-267.43,0.00032462,2]
[392417380,1761455449073,-1201.86,0.00032466,2]
[392417381,1761455449082,-688.5,0.00032489,2]
[392417382,1761455449091,-1000.0,0.000325,7]
[392417383,1761455449100,-1000.0,0.00032521,2]
[392417384,1761455449110,-476.61195222,0.00032526,2]
[392417385,1761455449119,-267.0,0.00032542,2]
[392417386,1761455449128,-476.0,0.00032596,7]
[392417387,1761455449137,-267.0,0.00032634,2]
[392417388,1761455449146,-1375.11,0.00032637,14]
[392417389,1761455449155,-300.0,0.00032653,7]
[392417390,1761455449164,-150.0,0.00032653,7]
[392417391,1761455449173,-945.38286259,0.00032676,7]
[392417392,1761455449183,-688.5,0.00032696,2]
[392417393,1761455449195,-1193.7170385,0.00032717,2]
[392417394,1761455449206,-163.73972323,0.0003274,30]
[392417395,1761455449215,-592.30349019,0.00032776,2]
[392417396,1761455449225,-1000.0,0.00032795,2]
[392417397,1761455449234,-720.05872634,0.00032797,2]
[392417398,1761455449243,-150.937,0.00032798,2]
[392417399,1761455449252,-3800.0,0.000328,11]
[392417400,1761455449261,-190.45116314,0.00032811,2]
[392417401,1761455449270,-190.45116314,0.00032816,2]
[392417402,1761455449281,-232.85903152,0.00032822,2]
[392417403,1761455449291,-720.05872634,0.0003283,2]
[392417404,1761455449299,-500.0,0.00032853,9]
[392417405,1761455449308,-500.0,0.00032853,7]
[392417406,1761455449317,-208.0,0.00032854,2]
[392417407,1761455449326,-150.0,0.00032854,2]
[392417408,1761455449337,-200.0,0.00032854,2]
[392417409,1761455449346,-213.22,0.00032854,2]
[392417410,1761455449355,-203.668,0.00032854,2]
[392417411,1761455449364,-250.0,0.00032854,2]
[392417412,1761455449373,-151.371,0.00032854,2]
[392417413,1761455449382,-150.0,0.00032854,2]
[392417414,1761455449391,-209.102,0.00032854,2]
[392417415,1761455449400,-209.409,0.00032854,2]
[392417416,1761455449411,-250.0,0.00032854,2]
[392417417,1761455449420,-218.073,0.00032854,2]
[392417418,1761455449429,-3413.0,0.00032854,2]
[392417419,1761455449438,-2053.0,0.00032854,2]
[392417420,1761455449447,-819.0,0.00032854,2]
[392417421,1761455449456,-572.0,0.00032854,2]
[392417422,1761455449465,-508.6813266,0.00032861,2]
[392417423,1761455449474,-232.85903152,0.00032865,2]
[392417424,1761455449483,-150.0,0.00032873,5]
[392417425,1761455449493,-169.77,0.00032873,2]
[392417426,1761455449502,-500.0,0.00032875,9]
[392417427,1761455449511,-500.0,0.00032875,7]
[392417428,1761455449520,-152.89070277,0.00032875,20]
[392417429,1761455449528,-500.0,0.00032875,9]
[392417430,1761455449635,-503.625577,0.00032876,9]
[392417431,1761455449644,-152.439922,0.00032876,9]
[392417432,1761455449654,-801.938272,0.00032876,9]
[392417433,1761455449663,-1000.0,0.00032876,2]
[392417434,1761455449672,-500.0,0.00032876,2]
[392417435,1761455449681,-500.0,0.00032876,9]
[392417436,1761455449690,-500.0,0.00032876,9]
[392417437,1761455449699,-500.0,0.00032876,9]
[392417438,1761455449709,-500.0,0.00032876,9]
[392417439,1761455449718,-500.0,0.00032876,9]
[392417440,1761455449728,-500.0,0.00032876,9]
[392417441,1761455449737,-500.0,0.00032876,9]
[392417442,1761455449747,-500.0,0.00032876,9]
[392417443,1761455449756,-500.0,0.00032876,9]
[392417444,1761455449765,-500.0,0.00032876,9]
[392417445,1761455449775,-500.0,0.00032876,9]
[392417446,1761455449784,-500.0,0.00032876,9]
[392417447,1761455449792,-752.95,0.00032876,9]
[392417448,1761455449801,-645.33295214,0.00032876,9]
[392417449,1761455449810,-384.19356206,0.00032876,9]
[392417450,1761455449818,-500.0,0.00032876,9]
[392417451,1761455449827,-500.0,0.00032876,9]
[392417452,1761455449836,-500.0,0.00032876,9]
[392417453,1761455449845,-334.65351181,0.00032876,9]
[392417454,1761455449854,-500.0,0.00032876,9]
[392417455,1761455449864,-500.0,0.00032876,9]
[392417456,1761455449874,-500.0,0.00032876,9]
[392417457,1761455449884,-500.0,0.00032876,9]
[392417458,1761455449893,-500.0,0.00032876,9]
[392417459,1761455449903,-500.0,0.00032876,9]
[392417460,1761455449912,-500.0,0.00032876,9]
[392417461,1761455449921,-187.78889731,0.00032876,9]
[392417462,1761455449930,-500.0,0.00032876,9]
[392417463,1761455449939,-500.0,0.00032876,9]
[392417464,1761455449948,-500.0,0.00032876,9]
[392417465,1761455449958,-500.0,0.00032876,9]
[392417466,1761455449967,-611.66,0.00032876,9]
[392417467,1761455449976,-500.0,0.00032876,9]
[392417468,1761455449985,-500.0,0.00032876,9]
[392417469,1761455449994,-500.0,0.00032876,9]
[392417470,1761455450003,-500.0,0.00032876,9]
[392417471,1761455450012,-500.0,0.00032876,9]
[392417472,1761455450021,-312.61772861,0.00032876,9]
[392417473,1761455450030,-500.0,0.00032876,9]
[392417474,1761455450039,-500.0,0.00032876,9]
[392417475,1761455450048,-500.0,0.00032876,9]
[392417476,1761455450058,-500.0,0.00032876,9]
[392417477,1761455450067,-500.0,0.00032876,9]
[392417478,1761455450076,-500.0,0.00032876,2]
[392417479,1761455450085,-500.0,0.00032876,9]
[392417480,1761455450094,-500.0,0.00032876,9]
[392417481,1761455450104,-380.0,0.00032876,9]
[392417482,1761455450113,-500.0,0.00032876,9]
[392417483,1761455450122,-500.0,0.00032876,9]
[392417484,1761455450131,-500.0,0.00032876,9]
[392417485,1761455450140,-500.0,0.00032876,9]
[392417486,1761455450151,-500.0,0.00032876,9]
[392417487,1761455450160,-500.0,0.00032876,9]
[392417488,1761455450169,-500.0,0.00032876,9]
[392417489,1761455450178,-500.0,0.00032876,9]
[392417490,1761455450187,-500.0,0.00032876,9]
[392417491,1761455450196,-500.0,0.00032876,9]
[392417492,1761455450206,-500.0,0.00032876,9]
[392417493,1761455450215,-500.0,0.00032876,9]
[392417494,1761455450224,-500.0,0.00032876,9]
[392417495,1761455450233,-500.0,0.00032876,9]
[392417496,1761455450242,-500.0,0.00032876,9]
[392417497,1761455450251,-500.0,0.00032876,9]
[392417498,1761455450260,-500.0,0.00032876,9]
[392417499,1761455450269,-500.0,0.00032876,9]
[392417500,1761455450278,-567.94500611,0.00032876,9]
[392417501,1761455450287,-500.0,0.00032876,9]
[392417502,1761455450296,-500.0,0.00032876,9]
[392417503,1761455450305,-500.0,0.00032876,9]
[392417504,1761455450315,-500.0,0.00032876,9]
[392417505,1761455450324,-500.0,0.00032876,9]
[392417506,1761455450335,-500.0,0.00032876,9]
[392417507,1761455450348,-624.07836345,0.00032876,9]
[392417508,1761455450357,-500.0,0.00032876,9]
[392417509,1761455450366,-500.0,0.00032876,9]
[392417510,1761455450375,-500.0,0.00032876,9]
[392417511,1761455450384,-500.0,0.00032876,9]
[392417512,1761455450395,-500.0,0.00032876,9]
[392417513,1761455450407,-500.0,0.00032876,9]
[392417514,1761455450416,-500.0,0.00032876,9]
[392417515,1761455450427,-560.55219619,0.00032876,9]
[392417516,1761455450440,-504.02866543,0.00032876,9]
[392417517,1761455450449,-500.0,0.00032876,9]
[392417518,1761455450460,-500.0,0.00032876,9]
[392417519,1761455450469,-500.0,0.00032876,9]
[392417520,1761455450478,-173.32758566,0.00032876,9]
[392417521,1761455450487,-500.0,0.00032876,9]
[392417522,1761455450495,-500.0,0.00032876,9]
[392417523,1761455450504,-500.0,0.00032876,9]
[392417524,1761455450513,-500.0,0.00032876,9]
[392417525,1761455450522,-322.74240017,0.00032876,9]
[392417526,1761455450532,-500.0,0.00032876,9]
[392417527,1761455450543,-500.0,0.00032876,9]
[392417528,1761455450552,-500.0,0.00032876,9]
[392417529,1761455450562,-544.70127636,0.00032876,9]
[392417530,1761455450571,-500.0,0.00032876,9]
[392417531,1761455450580,-500.0,0.00032876,9]
[392417532,1761455450590,-500.0,0.00032876,9]
[392417533,1761455450599,-500.0,0.00032876,9]
[392417534,1761455450609,-500.0,0.00032876,9]
[392417535,1761455450619,-500.0,0.00032876,9]
[392417536,1761455450630,-500.0,0.00032876,9]
[392417537,1761455450639,-500.0,0.00032876,9]
[392417538,1761455450648,-500.0,0.00032876,9]
[392417539,1761455450657,-500.0,0.00032876,7]
[392417540,1761455450667,-500.0,0.00032876,9]
[392417541,1761455450676,-314.08721373,0.00032876,9]
[392417542,1761455450686,-500.0,0.00032876,9]
[392417543,1761455450697,-500.0,0.00032876,9]
[392417544,1761455450705,-500.0,0.00032876,9]
[392417545,1761455450714,-500.0,0.00032876,9]
[392417546,1761455450723,-311.03482096,0.00032876,9]
[392417547,1761455450732,-642.69713414,0.00032876,9]
[392417548,1761455450741,-500.0,0.00032876,9]
[392417549,1761455450750,-500.0,0.00032876,9]
[392417550,1761455450759,-500.0,0.00032876,9]
[392417551,1761455450768,-500.0,0.00032876,9]
[392417552,1761455450777,-500.0,0.00032876,9]
[392417553,1761455450786,-500.0,0.00032876,9]
[392417554,1761455450796,-500.0,0.00032876,9]
[392417555,1761455450804,-500.0,0.00032876,9]
[392417556,1761455450813,-500.0,0.00032876,9]
[392417557,1761455450822,-328.62932435,0.00032876,9]
[392417558,1761455450831,-500.0,0.00032876,9]
[392417559,1761455450840,-500.0,0.00032876,9]
[392417560,1761455450849,-500.0,0.00032876,9]
[392417561,1761455450858,-500.0,0.00032876,9]
[392417562,1761455450867,-500.0,0.00032876,9]
[392417563,1761455450876,-500.0,0.00032876,9]
[392417564,1761455450885,-500.0,0.00032876,9]
[392417565,1761455450894,-684.44,0.00032876,9]
[392417566,1761455450903,-500.0,0.00032876,9]
[392417567,1761455450912,-500.0,0.00032876,9]
[392417568,1761455450921,-500.0,0.00032876,9]
[392417569,1761455450930,-500.0,0.00032876,9]
[392417570,1761455450938,-500.0,0.00032876,9]
[392417571,1761455450947,-500.0,0.00032876,9]
[392417572,1761455450956,-500.0,0.00032876,9]
[392417573,1761455450965,-500.0,0.00032876,9]
[392417574,1761455450974,-500.0,0.00032876,9]
[392417575,1761455450982,-500.0,0.00032876,9]
[392417576,1761455450991,-377.38715978,0.00032876,9]
[392417577,1761455451000,-436.1705965,0.00032876,9]
[392417578,1761455451009,-500.0,0.00032876,9]
[392417579,1761455451019,-500.0,0.00032876,9]
[392417580,1761455451027,-500.0,0.00032876,9]
[392417581,1761455451036,-500.0,0.00032876,9]
[392417582,1761455451045,-500.0,0.00032876,9]
[392417583,1761455451053,-500.0,0.00032876,9]
[392417584,1761455451062,-500.0,0.00032876,9]
[392417585,1761455451071,-500.0,0.00032876,9]
[392417586,1761455451079,-500.0,0.00032876,9]
[392417587,1761455451088,-500.0,0.00032876,9]
[392417588,1761455451096,-500.0,0.00032876,9]
[392417589,1761455451105,-500.0,0.00032876,9]
[392417590,1761455451114,-500.0,0.00032876,9]
[392417591,1761455451123,-500.0,0.00032876,9]
[392417592,1761455451131,-500.0,0.00032876,9]
[392417593,1761455451141,-531.13,0.00032876,9]
[392417594,1761455451149,-500.0,0.00032876,9]
[392417595,1761455451159,-500.0,0.00032876,9]
[392417596,1761455451168,-500.0,0.00032876,9]
[392417597,1761455451177,-500.0,0.00032876,9]
[392417598,1761455451187,-500.0,0.00032876,9]
[392417599,1761455451196,-500.0,0.00032876,9]
[392417600,1761455451205,-500.0,0.00032876,9]
[392417601,1761455451214,-500.0,0.00032876,9]
[392417602,1761455451223,-500.0,0.00032876,9]
[392417603,1761455451232,-500.0,0.00032876,9]
[392417604,1761455451241,-500.0,0.00032876,9]
[392417605,1761455451250,-500.0,0.00032876,9]
[392417606,1761455451259,-500.0,0.00032876,9]
[392417607,1761455451269,-500.0,0.00032876,9]
[392417608,1761455451278,-500.0,0.00032876,9]
[392417609,1761455451287,-500.0,0.00032876,9]
[392417610,1761455451296,-500.0,0.00032876,9]
[392417611,1761455451305,-500.0,0.00032876,9]
[392417612,1761455451313,-500.0,0.00032876,9]
[392417613,1761455451322,-500.0,0.00032876,9]
[392417614,1761455451331,-500.0,0.00032876,9]
[392417615,1761455451345,-500.0,0.00032876,9]
[392417616,1761455451354,-500.0,0.00032876,9]
[392417617,1761455451363,-500.0,0.00032876,2]
[392417618,1761455451372,-500.0,0.00032876,9]
[392417619,1761455451381,-500.0,0.00032876,9]
[392417620,1761455451390,-500.0,0.00032876,9]
[392417621,1761455451399,-500.0,0.00032876,9]
[392417622,1761455451410,-500.0,0.00032876,9]
[392417623,1761455451420,-500.0,0.00032876,9]
[392417624,1761455451429,-500.0,0.00032876,9]
[392417625,1761455451438,-500.0,0.00032876,9]
[392417626,1761455451446,-500.0,0.00032876,9]
[392417627,1761455451455,-500.0,0.00032876,9]
[392417628,1761455451463,-500.0,0.00032876,9]
[392417629,1761455451472,-500.0,0.00032876,9]
[392417630,1761455451481,-500.0,0.00032876,9]
[392417631,1761455451491,-500.0,0.00032876,9]
[392417632,1761455451500,-237.93560425,0.00032876,9]
[392417633,1761455451511,-500.0,0.00032876,9]
[392417634,1761455451520,-532.2,0.00032876,9]
[392417635,1761455451529,-500.0,0.00032876,9]
[392417636,1761455451538,-500.0,0.00032876,9]
[392417637,1761455451547,-500.0,0.00032876,9]
[392417638,1761455451556,-500.0,0.00032876,9]
[392417639,1761455451565,-500.0,0.00032876,9]
[392417640,1761455451574,-500.0,0.00032876,9]
[392417641,1761455451583,-500.0,0.00032876,9]
[392417642,1761455451678,-501.78270847,0.00032876,9]
[392417643,1761455451697,-500.0,0.00032876,9]
[392417644,1761455451707,-500.0,0.00032876,9]
[392417645,1761455451716,-500.0,0.00032876,9]
[392417646,1761455451725,-441.64812154,0.00032876,9]
[392417647,1761455451734,-500.0,0.00032876,9]
[392417648,1761455451742,-500.0,0.00032876,9]
[392417650,1761455451752,-500.0,0.00032876,9]
[392417651,1761455451761,-500.0,0.00032876,9]
[392417652,1761455451770,-500.0,0.00032876,9]
[392417653,1761455451780,-500.0,0.00032876,9]
[392417654,1761455451790,-500.0,0.00032876,9]
[392417655,1761455451799,-500.0,0.00032876,9]
[392417656,1761455451808,-500.0,0.00032876,9]
[392417657,1761455451817,-502.50216961,0.00032876,5]
[392417658,1761455451826,-500.0,0.00032876,9]
[392417659,1761455451835,-500.0,0.00032876,9]
[392417660,1761455451844,-500.0,0.00032876,9]
[392417661,1761455451853,-500.0,0.00032876,9]
[392417662,1761455451862,-500.0,0.00032876,9]
[392417663,1761455451871,-500.0,0.00032876,9]
[392417664,1761455451881,-500.0,0.00032876,9]
[392417665,1761455451890,-500.0,0.00032876,9]
[392417666,1761455451899,-500.0,0.00032876,9]
[392417667,1761455451908,-500.0,0.00032876,9]
[392417668,1761455451917,-500.0,0.00032876,9]
[392417669,1761455451926,-500.0,0.00032876,9]
[392417670,1761455451935,-500.0,0.00032876,9]
[392417671,1761455451944,-371.4449575,0.00032876,9]
[392417672,1761455451953,-598.86,0.00032876,9]
[392417673,1761455451963,-500.0,0.00032876,9]
[392417674,1761455451972,-500.0,0.00032876,9]
[392417675,1761455451980,-500.0,0.00032876,9]
[392417676,1761455451989,-640.62886332,0.00032876,9]
[392417677,1761455451998,-500.0,0.00032876,9]
[392417678,1761455452007,-500.0,0.00032876,9]
[392417679,1761455452016,-592.55711856,0.00032876,9]
[392417680,1761455452025,-500.0,0.00032876,9]
[392417681,1761455452034,-500.0,0.00032876,9]
[392417682,1761455452043,-500.0,0.00032876,9]
[392417683,1761455452053,-500.0,0.00032876,9]
[392417684,1761455452062,-500.0,0.00032876,9]
[392417685,1761455452071,-500.0,0.00032876,9]
[392417686,1761455452080,-500.0,0.00032876,9]
[392417687,1761455452089,-500.0,0.00032876,9]
[392417688,1761455452099,-500.0,0.00032876,9]
[392417689,1761455452107,-500.0,0.00032876,9]
[392417690,1761455452117,-500.0,0.00032876,2]
[392417691,1761455452127,-500.0,0.00032876,2]
[392417692,1761455452136,-500.0,0.00032876,2]
[392417693,1761455452145,-500.0,0.00032876,2]
[392417694,1761455452154,-500.0,0.00032876,2]
[392417695,1761455452163,-500.0,0.00032876,2]
[392417696,1761455452172,-441.62808829,0.00032876,9]
[392417697,1761455452181,-500.0,0.00032876,9]
[392417698,1761455452191,-568.48260373,0.00032876,9]
[392417699,1761455452204,-500.0,0.00032876,9]
[392417700,1761455452213,-500.0,0.00032876,9]
[392417701,1761455452222,-500.0,0.00032876,9]
[392417702,1761455452231,-2885.33,0.00032876,2]
[392417703,1761455452240,-500.0,0.00032876,9]
[392417704,1761455452250,-500.0,0.00032876,9]
[392417705,1761455452258,-500.0,0.00032876,9]
[392417706,1761455452267,-500.0,0.00032876,9]